bitfinex/quotes_ETHUSD_20240722
["timestamp","ask_amount","ask_price","bid_price","bid_amount"]
[1721675592081,2.3985,3488.8,3488.1,2.86683]
[1721675592284,2.3985,3488.8,3488.2,2.86676]
[1721675592285,8.13119,3488.8,3488.2,2.86676]
[1721675592487,8.13119,3488.8,3487.9,2.86699]
[1721675592488,3.0,3488.7,3488.1,2.86688]
[1721675593007,0.55,3488.6,3488.2,2.8668]
[1721675593206,0.55,3488.6,3488.1,2.86688]
[1721675593497,3.41651,3488.6,3487.9,2.86705]
[1721675593699,5.86656,3488.5,3487.9,2.86704]
[1721675593863,0.55,3488.4,3487.9,2.86704]
[1721675594066,3.0,3488.5,3487.9,5.73403]
[1721675594266,0.55,3488.4,3487.9,2.86699]
[1721675595208,0.55,3488.4,3488.0,2.86696]
[1721675595538,0.55,3488.4,3488.1,2.86688]
[1721675595862,0.55,3488.5,3488.1,2.86688]
[1721675596296,0.55,3488.5,3488.1,2.86683]
[1721675596704,0.55,3488.6,3488.1,3.440213]
[1721675596903,0.55,3488.6,3488.2,2.86676]
[1721675597109,0.55,3488.7,3488.2,2.86676]
[1721675597290,3.41628,3488.9,3488.3,2.86671]
[1721675597603,3.0,3488.8,3488.3,2.86671]
[1721675597906,0.55,3488.7,3488.3,2.86671]
[1721675598280,0.55,3488.7,3488.1,2.86681]
[1721675598495,0.55,3488.7,3487.9,2.867]
[1721675598496,2.3832,3488.5,3487.9,2.867]
[1721675598661,0.55,3488.4,3487.9,2.867]
[1721675599073,3.41656,3488.5,3487.7,5.31675]
[1721675599677,0.55,3488.5,3487.9,2.86704]
[1721675599891,2.86664,3488.4,3487.7,2.4496]
[1721675600212,3.41676,3488.3,3487.7,0.39779201]
[1721675600414,3.41676,3488.3,3487.4,9.8439]
[1721675600595,3.41676,3488.3,3487.6,2.8673]
[1721675600796,3.41676,3488.3,3487.4,12.7113]
[1721675601000,3.41676,3488.3,3487.7,2.8672]
[1721675601001,0.55,3488.3,3487.7,2.8672]
[1721675601316,6.41672,3488.4,3487.7,2.8672]
[1721675601804,2.86672,3488.3,3487.7,2.86718]
[1721675602012,3.41686,3488.2,3487.5,4.13844]
[1721675602376,3.41686,3488.2,3487.5,1.27113]
[1721675602574,2.86697,3488.0,3487.4,7.4]
[1721675602776,0.55,3487.9,3487.4,7.4]
[1721675603195,0.55,3487.9,3487.4,10.26741]
[1721675603539,3.41697,3488.0,3487.4,7.4]
[1721675603834,0.55,3488.0,3487.4,7.4]
[1721675603991,0.55,3488.0,3487.4,7.95996679]
[1721675604321,0.55,3488.0,3487.5,2.86738]
[1721675604488,0.55,3488.0,3487.4,7.95996679]
[1721675604694,0.55,3488.0,3487.6,2.86725]
[1721675604898,2.86681,3488.2,3487.6,2.86725]
[1721675605091,0.55,3488.1,3487.5,2.86737]
[1721675605293,0.55,3488.1,3487.6,2.86729]
[1721675605642,0.55,3488.1,3487.4,7.4]
[1721675605643,2.86717,3487.8,3487.4,7.4]
[1721675605990,0.55,3487.7,3487.4,7.4]
[1721675606315,0.55,3487.7,3487.2,2.86762]
[1721675606492,0.55,3487.7,3487.4,2.86745]
[1721675606689,0.55,3487.9,3487.3,2.86749]
[1721675606922,0.55,3487.9,3487.2,2.86763]
[1721675607439,0.55,3487.9,3487.4,2.86746]
[1721675607636,0.55,3487.9,3487.4,2.86742]
[1721675608009,0.55,3487.9,3487.5,2.86732]
[1721675609298,0.55,3487.9,3487.4,2.86744]
[1721675609533,0.55,3487.9,3487.5,2.86736]
[1721675610850,0.55,3487.9,3487.6,2.86729]
[1721675611408,0.55,3487.9,3487.2,1.026763]
[1721675611605,0.55,3488.2,3487.8,2.86708]
[1721675611828,0.55,3488.2,3487.3,2.4008]
[1721675611829,0.55,3488.2,3487.7,2.86714]
[1721675612235,0.55,3488.2,3487.3,2.4008]
[1721675612236,0.55,3488.2,3487.5,2.86732]
[1721675612440,0.55,3488.2,3487.7,2.86716]
[1721675612634,0.55,3488.2,3487.8,2.86713]
[1721675613114,3.41681,3488.2,3487.6,2.86725]
[1721675613315,5.86693,3488.1,3487.5,2.86736]
[1721675613544,0.55,3488.0,3487.6,2.86729]
[1721675613745,0.55,3488.0,3487.4,2.86738]
[1721675614047,6.4169,3488.1,3487.4,3.2567943]
[1721675614461,3.55,3488.1,3487.6,2.86729]
[1721675614748,0.55,3488.1,3487.6,2.86729]
[1721675615259,0.55,3488.1,3487.7,2.86716]
[1721675615831,0.55,3488.1,3487.5,2.86731]
[1721675615832,0.55,3488.1,3487.6,2.8673]
[1721675616424,3.41692,3488.1,3487.5,2.86737]
[1721675616624,3.0,3488.0,3487.4,2.86746]
[1721675616880,0.55,3487.9,3487.4,2.86746]
[1721675617058,0.55,3487.9,3487.4,2.8674]
[1721675617367,3.41689,3488.1,3487.5,2.86737]
[1721675617672,3.0,3488.0,3487.5,2.86733]
[1721675617969,0.55,3487.9,3487.5,2.86733]
[1721675618127,3.0,3488.0,3487.5,2.86733]
[1721675618327,0.55,3487.9,3487.5,2.86733]
[1721675618844,0.55,3487.9,3487.4,2.86745]
[1721675619161,0.55,3487.9,3487.5,2.86737]
[1721675619668,0.55,3487.9,3487.5,2.86736]
[1721675620132,0.55,3487.9,3487.4,2.86746]
[1721675620327,2.86726,3487.7,3486.9,9.6857]
[1721675620711,2.86746,3487.4,3486.8,3.50812346]
[1721675620963,2.86744,3487.5,3486.6,12.61931]
[1721675621166,1.419216,3487.7,3486.3,0.59472301]
[1721675621167,2.86763,3487.2,3486.3,7.99472301]
[1721675621339,5.27913,3487.2,3486.4,2.86824]
[1721675621530,0.55,3487.1,3486.3,7.4]
[1721675621729,3.41771,3487.1,3486.3,10.26836]
[1721675622010,3.41771,3487.1,3486.4,2.86822]
[1721675622159,3.41771,3487.1,3486.5,2.86819]
[1721675622673,0.55,3487.1,3486.5,5.73634]
[1721675622840,0.55,3487.1,3486.5,2.86815]
[1721675623039,0.55,3487.1,3486.6,2.86811]
[1721675623472,0.55,3487.1,3486.5,2.86816]
[1721675623638,3.41771,3487.1,3486.5,2.86816]
[1721675623840,2.86783,3487.0,3486.3,10.2683]
[1721675624162,0.55,3486.9,3486.3,7.4]
[1721675624667,0.55,3486.9,3486.5,2.86818]
[1721675624875,0.55,3487.0,3486.5,2.86818]
[1721675626773,0.55,3487.0,3486.3,10.26828]
[1721675627065,3.41783,3487.0,3486.4,2.86828]
[1721675627275,0.55,3487.0,3486.4,2.86828]
[1721675627636,0.55,3487.0,3486.1,2.8685]
[1721675627637,2.86788,3486.9,3486.1,2.8685]
[1721675627868,2.86788,3486.9,3486.0,7.4]
[1721675627869,2.86804,3486.7,3486.0,7.4]
[1721675628043,3.0097,3486.8,3485.9,2.86862]
[1721675628257,3.0097,3486.8,3485.7,9.8346]
[1721675628258,0.55,3486.7,3486.2,2.86843]
[1721675628643,0.55,3486.7,3486.3,2.86836]
[1721675628848,0.55,3486.7,3486.4,2.86827]
[1721675629250,0.55,3486.7,3485.8,2.86877]
[1721675629448,0.55,3487.0,3486.3,2.86828]
[1721675629659,0.55,3487.0,3486.5,2.86816]
[1721675630095,3.41779,3487.0,3486.4,2.86828]
[1721675630300,3.0,3486.9,3486.3,2.86831]
[1721675630462,3.0,3486.9,3485.9,1.270337]
[1721675630463,1.727009,3486.8,3485.7,9.8346]
[1721675630646,0.55,3486.8,3486.0,2.86856]
[1721675631145,0.55,3486.8,3486.2,2.86843]
[1721675631350,3.41795,3486.8,3486.1,2.86851]
[1721675631693,0.55,3486.8,3486.1,2.86851]
[1721675631865,3.41796,3486.8,3486.1,2.86848]
[1721675632047,0.55,3486.8,3486.1,2.86848]
[1721675632254,0.55,3486.8,3486.2,2.86841]
[1721675632870,3.41798,3486.8,3486.2,2.86841]
[1721675633179,4.581795,3486.8,3486.2,2.86841]
[1721675633584,1.713815,3486.8,3486.2,2.86841]
[1721675634498,4.581785,3486.8,3486.2,2.86841]
[1721675635059,4.581785,3486.8,3485.7,9.8346]
[1721675635399,2.2893,3486.7,3486.0,2.86861]
[1721675635585,2.2893,3486.7,3485.7,12.70339]
[1721675635586,3.41818,3486.6,3485.9,2.86867]
[1721675635797,2.86821,3486.5,3485.9,2.86867]
[1721675635957,3.55,3486.4,3485.9,2.86867]
[1721675637486,0.55,3486.4,3485.9,2.86864]
[1721675637795,5.86812,3486.6,3486.0,2.8686]
[1721675637796,0.55,3486.5,3486.0,2.8686]
[1721675638183,0.55,3486.5,3485.9,2.86863]
[1721675638184,0.55,3486.5,3486.2,2.86844]
[1721675638694,0.55,3486.5,3486.0,2.86853]
[1721675638883,0.55,3486.5,3486.1,2.86848]
[1721675639209,0.55,3486.5,3486.2,2.86844]
[1721675639883,0.55,3486.5,3486.1,2.86852]
[1721675640089,0.55,3486.5,3486.2,2.86844]
[1721675640997,0.55,3486.5,3486.3,2.86833]
[1721675641165,0.55,3486.5,3486.4,5.73656]
[1721675641373,0.55,3486.5,3486.4,2.86828]
[1721675641617,0.55,3486.8,3486.4,2.86828]
[1721675641794,0.55,3486.8,3486.0,2.2805]
[1721675641795,0.55,3486.8,3486.3,2.86834]
[1721675641971,0.55,3486.8,3486.3,2.86832]
[1721675642283,0.55,3486.8,3486.1,2.86848]
[1721675642607,0.55,3486.8,3486.3,2.86832]
[1721675643172,0.55,3486.8,3486.4,2.86823]
[1721675644614,0.55,3486.8,3486.5,2.86814]
[1721675645629,0.55,3486.8,3486.6,2.86812]
[1721675645908,0.55,3486.8,3486.7,2.86804]
[1721675647274,0.55,3487.1,3486.7,2.86804]
[1721675647514,1.720039,3487.1,3486.7,2.86804]
[1721675647807,1.720039,3487.1,3486.8,2.86792]
[1721675648010,1.720039,3487.1,3486.9,2.86787]
[1721675648327,1.720039,3487.1,3487.0,2.86779]
[1721675648328,0.55,3487.1,3487.0,2.86779]
[1721675649521,2.2936,3487.6,3486.7,2.86801]
[1721675649704,2.2936,3487.6,3487.2,2.86755]
[1721675650077,2.2936,3487.6,3487.2,2.86756]
[1721675650822,2.2936,3487.6,3487.0,2.86772]
[1721675651015,0.55,3487.5,3487.2,2.8676]
[1721675651375,3.55,3487.5,3487.2,2.86757]
[1721675651712,7.30179,3487.5,3486.9,2.86785]
[1721675651922,2.86747,3487.4,3486.3,2.86835]
[1721675652124,3.55,3487.3,3486.8,2.86791]
[1721675652509,3.55,3487.3,3486.8,5.73581]
[1721675652687,3.55,3487.3,3486.8,2.8679]
[1721675652887,4.509543,3487.3,3486.8,2.8679]
[1721675653504,2.86775,3487.1,3486.1,9.8034]
[1721675653713,4.509543,3487.3,3485.7,0.59472301]
[1721675653714,5.28518,3486.9,3485.7,9.702]
[1721675653987,5.28518,3486.9,3485.7,2.302]
[1721675654225,2.86807,3486.7,3486.1,2.86846]
[1721675654593,3.55,3486.6,3486.1,2.86846]
[1721675654829,5.020325,3486.6,3486.1,2.86846]
[1721675655286,5.020325,3486.6,3486.2,2.86843]
[1721675655486,2.020325,3486.6,3486.2,2.86843]
[1721675656291,0.55,3486.6,3486.2,2.86843]
[1721675656490,0.55,3486.6,3485.9,2.86864]
[1721675656690,3.0,3486.8,3485.7,2.302]
[1721675656691,0.55,3486.7,3486.5,2.86812]
[1721675657017,0.55,3486.7,3486.6,2.86812]
[1721675657698,3.0,3487.1,3486.6,2.86812]
[1721675657699,0.55,3487.0,3486.6,2.86812]
[1721675658906,0.55,3487.0,3486.5,2.8682]
[1721675659091,4.301299,3487.0,3486.4,2.86828]
[1721675659294,3.0,3486.9,3486.4,2.86823]
[1721675659599,0.55,3486.8,3486.5,2.8682]
[1721675660028,0.55,3486.9,3486.5,2.8682]
[1721675661210,0.55,3486.9,3486.5,2.86816]
[1721675661398,2.4953,3487.5,3486.5,3.012049]
[1721675661604,2.86702,3488.0,3487.4,2.86746]
[1721675661841,2.8669,3488.1,3487.4,2.86746]
[1721675662045,0.822897,3488.0,3487.4,2.86746]
[1721675662698,0.822897,3488.0,3487.4,2.86741]
[1721675663013,3.822897,3488.0,3487.4,2.86741]
[1721675663213,2.86719,3487.8,3486.9,7.4]
[1721675663532,5.36264,3487.6,3486.9,10.26783]
[1721675663735,5.36264,3487.6,3487.0,2.86773]
[1721675663736,2.4953,3487.6,3487.0,2.86773]
[1721675664038,0.55,3487.5,3487.0,2.86773]
[1721675664242,3.55,3487.5,3487.0,2.86773]
[1721675664920,3.55,3487.5,3486.9,10.26787]
[1721675665138,6.41738,3487.5,3486.9,2.86787]
[1721675665884,6.41738,3487.5,3486.8,2.86795]
[1721675666050,7.308648,3487.5,3486.7,2.86804]
[1721675666254,2.86747,3487.4,3486.7,2.86799]
[1721675666401,3.55,3487.3,3486.8,2.86795]
[1721675666602,2.86767,3487.2,3486.6,2.86808]
[1721675666846,2.2579,3487.0,3485.9,0.59472301]
[1721675667029,5.2579,3487.0,3485.9,2.86863]
[1721675667240,2.86804,3486.7,3486.1,2.86852]
[1721675667554,3.41788,3486.9,3485.9,2.86863]
[1721675667555,3.0,3486.6,3485.9,2.86863]
[1721675667751,3.0,3486.6,3486.0,2.8686]
[1721675667957,0.55,3486.5,3486.0,2.8686]
[1721675668866,1.191809,3486.5,3485.8,7.4]
[1721675669064,2.86854,3486.1,3485.8,7.4]
[1721675669230,2.86854,3486.1,3485.5,2.86899]
[1721675669231,0.55,3486.0,3485.5,2.86899]
[1721675669755,0.55,3486.0,3485.5,2.86896]
[1721675670569,0.55,3486.0,3485.3,2.86912]
[1721675670888,0.55,3486.0,3485.4,2.86905]
[1721675671162,0.55,3486.0,3485.5,2.869]
[1721675671743,3.41862,3486.0,3485.3,7.007012]
[1721675671946,3.41862,3486.0,3485.2,7.4]
[1721675671947,3.41862,3486.0,3485.4,2.8691]
[1721675672162,0.55,3486.0,3485.4,2.8691]
[1721675672468,2.86846,3486.2,3485.4,2.86905]
[1721675672469,6.41853,3486.1,3485.4,2.86905]
[1721675672834,6.41853,3486.1,3485.4,5.7381]
[1721675673180,6.41853,3486.1,3485.5,2.869]
[1721675674569,3.55,3486.1,3485.6,2.86893]
[1721675675567,3.55,3486.1,3485.8,2.86871]
[1721675675775,0.55,3486.1,3485.8,2.86871]
[1721675675947,0.55,3486.2,3485.8,2.86874]
[1721675676148,0.55,3486.4,3485.8,2.86874]
[1721675676832,3.41829,3486.4,3485.8,2.86872]
[1721675677078,3.0,3486.3,3485.8,2.86872]
[1721675677369,0.55,3486.2,3485.8,2.8687]
[1721675677679,0.55,3486.2,3485.9,2.86868]
[1721675677863,0.55,3486.3,3485.9,2.86868]
[1721675678939,0.55,3486.3,3485.9,2.86864]
[1721675679448,0.55,3486.3,3485.7,2.86878]
[1721675679637,0.55,3486.3,3485.8,2.86873]
[1721675680064,0.55,3486.3,3485.9,2.86866]
[1721675680450,0.55,3486.4,3486.1,2.86853]
[1721675680860,0.55,3486.5,3486.1,2.86853]
[1721675681934,0.55,3486.5,3486.0,2.86861]
[1721675682787,0.55,3486.5,3486.0,2.86856]
[1721675683290,2.4914,3487.1,3486.7,2.86799]
[1721675683500,2.4914,3487.1,3486.0,0.805641]
[1721675683501,2.2667,3487.5,3487.1,2.86769]
[1721675683703,2.86713,3487.8,3487.1,2.86766]
[1721675683867,2.86713,3487.8,3486.9,2.86784]
[1721675683868,2.86722,3487.7,3487.0,2.86779]
[1721675684200,0.800102,3487.6,3486.9,2.86781]
[1721675684495,3.667442,3487.6,3486.9,2.86781]
[1721675684857,3.667442,3487.6,3486.7,2.86799]
[1721675684858,2.86747,3487.4,3486.7,2.86799]
[1721675685186,3.41759,3487.3,3486.6,10.26809]
[1721675685387,3.41759,3487.3,3486.7,2.86802]
[1721675685688,3.41759,3487.3,3486.7,2.868]
[1721675685943,0.55,3487.3,3486.7,2.868]
[1721675686188,3.55,3487.3,3486.7,2.868]
[1721675686392,3.55,3487.3,3486.8,5.73585]
[1721675686555,3.55,3487.3,3486.9,2.86781]
[1721675686755,0.55,3487.3,3486.9,2.86781]
[1721675688955,0.55,3487.3,3486.9,5.73562]
[1721675689284,0.55,3487.3,3486.9,2.86781]
[1721675689478,3.41738,3487.5,3486.9,2.86781]
[1721675689698,3.0,3487.4,3486.9,2.86781]
[1721675689887,0.55,3487.3,3486.9,2.86781]
[1721675690201,0.55,3487.3,3487.0,2.86774]
[1721675690368,0.55,3487.5,3487.0,2.86774]
[1721675690892,0.55,3487.5,3487.1,2.8677]
[1721675691730,0.55,3487.5,3486.9,2.86781]
[1721675692419,0.55,3487.5,3487.0,2.86777]
[1721675692584,0.55,3487.5,3487.0,2.86773]
[1721675693294,0.55,3487.5,3487.0,5.73546]
[1721675693628,0.55,3487.5,3487.1,2.8677]
[1721675693926,0.55,3487.5,3487.1,2.86766]
[1721675694107,3.55,3487.6,3487.1,2.86766]
[1721675694316,6.41731,3487.6,3487.0,2.86776]
[1721675694502,3.55,3487.6,3487.0,2.86776]
[1721675694685,0.55,3487.6,3487.1,2.86769]
[1721675694883,0.55,3487.6,3487.1,2.86766]
[1721675695110,0.55,3487.7,3487.2,2.86762]
[1721675695391,1.418384,3487.7,3487.2,2.86762]
[1721675696128,1.418384,3487.7,3487.1,2.86771]
[1721675696288,4.285604,3487.7,3487.1,2.86771]
[1721675696485,3.0,3487.6,3487.1,2.86771]
[1721675696822,0.55,3487.5,3487.1,2.86771]
[1721675698413,0.55,3487.5,3487.0,2.86777]
[1721675699020,4.1459594,3487.5,3486.9,2.86787]
[1721675699234,4.1459594,3487.5,3487.0,2.86778]
[1721675699235,3.0,3487.4,3487.0,2.86778]
[1721675699528,0.55,3487.3,3487.0,2.86777]
[1721675700023,0.55,3487.4,3487.0,2.86777]
[1721675700185,0.55,3487.4,3486.6,7.4]
[1721675700186,0.55,3487.4,3487.3,2.86754]
[1721675700523,0.55,3487.5,3487.3,2.86754]
[1721675700724,3.0,3487.8,3487.3,2.86754]
[1721675700725,0.55,3487.7,3487.3,2.86754]
[1721675700924,0.55,3487.7,3487.0,2.86779]
[1721675701369,0.55,3487.7,3487.2,2.8676]
[1721675701957,1.705099,3487.7,3487.2,2.86762]
[1721675702458,1.705099,3487.7,3486.8,2.8679]
[1721675702755,2.8674,3487.5,3486.9,2.8678]
[1721675702954,3.55,3487.4,3486.8,2.86789]
[1721675703258,3.55,3487.4,3486.8,5.73579]
[1721675703467,2.3408,3487.3,3486.7,2.86796]
[1721675703755,2.3408,3487.3,3486.8,2.86794]
[1721675703756,0.55,3487.2,3486.8,2.86794]
[1721675704056,0.55,3487.2,3486.6,7.4]
[1721675704275,2.86775,3487.1,3486.6,7.4]
[1721675704414,0.55,3487.2,3486.2,7.4]
[1721675704415,6.993695,3487.0,3486.2,7.4]
[1721675704618,0.55,3486.9,3486.2,7.4]
[1721675704818,0.55,3486.9,3486.3,2.86836]
[1721675705054,3.55,3486.9,3486.3,2.86836]
[1721675705272,3.55,3486.9,3486.4,2.86826]
[1721675706468,3.55,3486.9,3486.6,2.86806]
[1721675706688,0.55,3486.9,3486.6,2.86806]
[1721675706820,0.55,3487.0,3486.6,2.86806]
[1721675707155,0.55,3487.0,3486.4,2.86824]
[1721675707361,4.580424,3487.0,3486.4,2.86824]
[1721675707526,3.0,3486.9,3486.4,2.86824]
[1721675707725,0.55,3486.8,3486.4,2.86822]
[1721675708137,2.86726,3487.7,3486.3,2.4821]
[1721675708348,0.798557,3487.6,3486.9,2.86783]
[1721675708566,0.798557,3487.6,3487.0,2.86779]
[1721675708872,2.86742,3487.5,3486.9,2.86787]
[1721675709162,3.0,3487.4,3486.9,2.86787]
[1721675709459,3.0,3487.4,3486.4,0.98821]
[1721675709460,3.0,3487.4,3487.3,2.86754]
[1721675709771,2.86713,3487.9,3487.1,2.86763]
[1721675709937,3.0,3487.8,3487.2,2.86758]
[1721675710256,3.0,3487.8,3486.5,2.4975]
[1721675710257,2.86722,3487.7,3486.9,2.86785]
[1721675710465,2.86739,3487.5,3486.9,2.86785]
[1721675710633,3.0,3487.4,3486.9,2.86785]
[1721675711037,0.55,3487.3,3486.9,2.86785]
[1721675711234,0.55,3487.3,3486.9,2.86781]
[1721675711450,0.55,3487.3,3486.9,2.86782]
[1721675711768,0.55,3487.4,3486.9,2.86782]
[1721675712071,0.55,3487.4,3487.0,2.86774]
[1721675712270,0.55,3487.4,3487.1,2.86771]
[1721675712562,3.0,3487.5,3487.4,2.86746]
[1721675712726,3.0,3487.5,3487.3,2.86749]
[1721675712727,5.4249,3488.0,3487.3,2.86749]
[1721675712927,5.86709,3487.9,3487.3,2.86749]
[1721675713128,4.115897,3487.9,3487.1,2.86763]
[1721675713367,2.86725,3487.7,3487.0,2.86772]
[1721675713584,3.0,3487.6,3487.0,2.86772]
[1721675713750,2.86739,3487.5,3486.9,2.8678]
[1721675713936,2.86725,3487.7,3486.6,7.4]
[1721675713937,3.55,3487.4,3487.0,2.86779]
[1721675714141,0.55,3487.4,3486.8,2.86791]
[1721675714475,0.55,3487.5,3487.0,2.86778]
[1721675714657,0.55,3487.5,3487.0,2.86772]
[1721675714832,2.86722,3487.7,3487.0,2.86772]
[1721675714833,3.55,3487.6,3487.0,2.86772]
[1721675715029,7.645743,3487.6,3487.0,2.86776]
[1721675715264,2.86767,3487.2,3486.6,7.4]
[1721675715566,2.86781,3487.0,3486.3,2.86832]
[1721675715730,2.454,3486.9,3486.3,2.86832]
[1721675715926,0.55,3486.8,3486.3,2.86829]
[1721675716163,0.55,3486.8,3486.4,2.86822]
[1721675716368,0.55,3486.8,3486.3,2.86836]
[1721675716775,0.55,3486.8,3486.4,2.86824]
[1721675716990,0.55,3486.8,3486.4,2.86823]
[1721675717279,0.55,3486.8,3486.3,2.8683]
[1721675717460,0.55,3486.8,3486.5,2.86816]
[1721675717765,0.55,3486.8,3486.4,2.86823]
[1721675718278,0.55,3486.8,3486.4,2.86828]
[1721675718432,0.55,3486.8,3486.5,2.86819]
[1721675718772,0.55,3486.8,3486.0,5.23859]
[1721675718773,0.55,3486.8,3486.6,2.86812]
[1721675718928,0.55,3486.8,3486.6,5.73618]
[1721675719130,0.55,3486.8,3486.5,2.8682]
[1721675719648,0.55,3486.8,3486.6,2.86812]
[1721675719855,2.86769,3487.2,3486.8,2.86791]
[1721675719856,2.3791,3487.2,3486.8,2.86791]
[1721675720056,3.203756,3487.2,3486.8,2.86791]
[1721675720259,3.0,3487.1,3486.8,2.86791]
[1721675720579,3.0,3487.1,3486.8,2.86795]
[1721675720881,3.0,3487.1,3486.8,2.8679]
[1721675721060,3.0,3487.1,3486.9,2.86787]
[1721675721259,1.228433,3487.6,3487.3,2.86748]
[1721675721260,2.4565,3487.6,3487.3,2.86748]
[1721675721463,2.86686,3488.2,3487.4,2.86746]
[1721675721774,2.86686,3488.2,3486.8,2.2955]
[1721675721775,2.8671,3487.9,3487.2,2.86755]
[1721675722100,2.8673,3487.6,3487.1,2.86763]
[1721675722265,2.86722,3487.7,3487.1,2.86763]
[1721675722675,2.3318,3487.8,3487.0,2.86772]
[1721675722886,3.41722,3487.7,3486.9,2.86782]
[1721675723190,3.0,3487.6,3487.1,2.86765]
[1721675723352,0.55,3487.5,3487.1,2.86765]
[1721675723545,0.55,3487.5,3487.2,2.86762]
[1721675723746,0.55,3487.5,3487.0,2.86773]
[1721675724376,0.55,3487.5,3487.2,2.86762]
[1721675724890,0.55,3487.5,3486.5,7.4]
[1721675725061,0.55,3487.5,3486.5,3.83773]
[1721675725406,3.55,3487.5,3487.0,2.86778]
[1721675725887,3.55,3487.5,3487.1,2.86768]
[1721675726052,0.55,3487.5,3487.1,2.86768]
[1721675726252,0.55,3487.6,3487.1,2.86768]
[1721675727284,4.57896,3487.6,3486.9,2.86782]
[1721675727557,5.86738,3487.5,3486.9,2.86785]
[1721675727779,0.55,3487.4,3486.9,2.86785]
[1721675728169,0.55,3487.4,3487.0,2.86779]
[1721675728453,0.55,3487.4,3487.0,2.86778]
[1721675728888,0.55,3487.5,3487.0,2.86778]
[1721675729391,3.41743,3487.5,3486.9,2.86786]
[1721675729688,3.0,3487.4,3486.9,2.86786]
[1721675729889,0.55,3487.3,3486.9,2.86786]
[1721675730095,0.55,3487.3,3486.9,2.86782]
[1721675730299,0.55,3487.3,3486.8,2.86794]
[1721675730499,5.13413,3487.2,3486.4,2.86824]
[1721675730676,0.55,3487.1,3486.6,2.86807]
[1721675731299,0.55,3487.1,3486.7,2.86802]
[1721675731996,0.55,3487.1,3486.8,2.86795]
[1721675732490,0.55,3487.1,3486.9,2.86779]
[1721675732698,0.55,3487.3,3487.1,2.86764]
[1721675732909,0.55,3487.3,3486.9,2.8678]
[1721675733197,0.55,3487.3,3487.0,2.86778]
[1721675733492,0.55,3487.3,3486.8,2.86795]
[1721675733493,0.55,3487.3,3486.9,2.86783]
[1721675733690,0.55,3487.3,3487.0,2.86778]
[1721675735276,0.55,3487.3,3486.8,2.86787]
[1721675735277,0.55,3487.3,3486.7,2.86801]
[1721675735500,3.41757,3487.3,3486.7,2.86801]
[1721675736083,3.41757,3487.3,3486.6,2.86811]
[1721675736285,2.86763,3487.2,3486.6,2.86811]
[1721675736612,4.301887,3487.3,3486.6,2.86807]
[1721675737393,4.301887,3487.3,3486.7,2.86799]
[1721675737980,2.86764,3487.2,3486.5,5.73633]
[1721675738173,2.86764,3487.2,3486.5,2.86813]
[1721675738371,2.86764,3487.2,3486.1,5.22149]
[1721675738644,0.55,3487.3,3486.2,3.81538895]
[1721675738794,2.86779,3487.0,3486.2,1.3216213]
[1721675738999,2.4258,3486.9,3486.4,2.86828]
[1721675739217,2.4258,3486.9,3486.4,5.73652]
[1721675739517,2.4258,3486.9,3486.4,2.86828]
[1721675739717,0.55,3486.8,3486.4,2.86828]
[1721675740322,0.55,3486.8,3486.2,2.86837]
[1721675740518,2.86791,3486.9,3486.2,2.86837]
[1721675740720,0.55,3486.8,3486.2,2.86837]
[1721675741077,0.55,3486.8,3486.2,5.73677]
[1721675741385,2.86804,3486.7,3486.1,2.86852]
[1721675741711,2.86804,3486.7,3486.0,7.4]
[1721675741916,2.4432,3486.5,3486.0,7.4]
[1721675742224,2.86829,3486.4,3486.0,7.4]
[1721675742435,2.86845,3486.2,3486.0,7.4]
[1721675742781,2.86829,3486.4,3486.0,7.4]
[1721675742782,2.86839,3486.3,3486.0,7.4]
[1721675742991,3.55,3486.2,3486.0,7.4]
[1721675744100,6.41846,3486.2,3486.0,7.4]
[1721675744884,2.86853,3486.1,3486.0,7.4]
[1721675745086,2.86853,3486.1,3485.4,2.8691]
[1721675745087,3.41853,3486.1,3485.4,2.8691]
[1721675745392,3.0,3486.0,3485.3,2.86919]
[1721675745612,3.55,3486.0,3485.4,2.8691]
[1721675745823,6.41862,3486.0,3485.4,2.8691]
[1721675746027,2.8687,3485.9,3485.2,2.86922]
[1721675746189,2.8687,3485.9,3485.1,2.86931]
[1721675746392,3.0,3485.8,3485.1,4.143331]
[1721675746590,3.0,3485.8,3485.3,2.86915]
[1721675746791,5.4368,3485.9,3485.4,2.86909]
[1721675747091,3.0,3485.9,3485.5,2.86902]
[1721675747407,3.0,3486.1,3485.2,2.86921]
[1721675747613,2.4368,3486.5,3485.7,5.7376]
[1721675747808,2.4368,3486.5,3485.3,0.6614131]
[1721675747809,3.41833,3486.4,3485.6,2.86892]
[1721675748040,3.0,3486.3,3485.8,2.86873]